[Event "*** Titled Tuesday Blitz"]
[Site "Chess.com"]
[Date "2020.12.29"]
[Round "5"]
[White "lamomiablanca"]
[Black "tlomigtlis"]
[Result "0-1"]
[WhiteElo "2299"]
[BlackElo "2533"]
[TimeControl "180+1"]
[EndTime "10:55:17 PST"]
[Termination "tlomigtlis won by resignation"]

1. e4 {[%clk 0:03:00.9]} 1... c5 {[%clk 0:02:59.8]} 2. d3 {[%clk 0:02:59.7]}
2... d6 {[%clk 0:02:59.7]} 3. g3 {[%clk 0:02:59.3]} 3... Nc6 {[%clk 0:02:59.5]}
4. Bg2 {[%clk 0:02:58.1]} 4... g6 {[%clk 0:03:00.4]} 5. f4 {[%clk 0:02:57.6]}
5... Bg7 {[%clk 0:03:00.8]} 6. Nf3 {[%clk 0:02:57.7]} 6... e6 {[%clk 0:03:00.2]}
7. O-O {[%clk 0:02:57.8]} 7... Nge7 {[%clk 0:03:00.8]} 8. c3 {[%clk 0:02:57.9]}
8... O-O {[%clk 0:03:01.2]} 9. Be3 {[%clk 0:02:52.4]} 9... f5 {[%clk 0:02:59.3]}
10. Nbd2 {[%clk 0:02:47.7]} 10... e5 {[%clk 0:02:56.1]} 11. Nc4 {[%clk
0:02:40.3]} 11... b5 {[%clk 0:02:50.2]} 12. Na3 {[%clk 0:02:37.5]} 12... a6
{[%clk 0:02:49.9]} 13. exf5 {[%clk 0:02:37.3]} 13... Nxf5 {[%clk 0:02:49.1]} 14.
Bd2 {[%clk 0:02:36]} 14... Be6 {[%clk 0:02:43.2]} 15. Ng5 {[%clk 0:02:35.4]}
15... Bd7 {[%clk 0:02:39.4]} 16. Bd5+ {[%clk 0:02:30.4]} 16... Kh8 {[%clk
0:02:39.1]} 17. Nf7+ {[%clk 0:01:52.1]} 17... Rxf7 {[%clk 0:02:39.1]} 18. Bxf7
{[%clk 0:01:53]} 18... Nce7 {[%clk 0:02:22.6]} 19. Bb3 {[%clk 0:01:40.8]} 19...
Bc6 {[%clk 0:02:20.2]} 20. Qe2 {[%clk 0:01:34.5]} 20... Qb6 {[%clk 0:02:10.2]}
21. Qf2 {[%clk 0:01:29.2]} 21... Bb7 {[%clk 0:02:04.3]} 22. Bd1 {[%clk
0:01:27.5]} 22... d5 {[%clk 0:01:42.2]} 23. fxe5 {[%clk 0:01:22.5]} 23... Rf8
{[%clk 0:01:42.5]} 24. Bf3 {[%clk 0:01:19]} 24... Bxe5 {[%clk 0:01:37.1]} 25.
Qg2 {[%clk 0:01:17.9]} 25... b4 {[%clk 0:01:33]} 26. Nc2 {[%clk 0:01:13.9]}
26... b3 {[%clk 0:01:09.3]} 27. axb3 {[%clk 0:01:09.2]} 27... Qxb3 {[%clk
0:01:10.2]} 28. Bf4 {[%clk 0:00:58.7]} 28... Bxf4 {[%clk 0:01:04.9]} 29. gxf4
{[%clk 0:00:59]} 29... Nh4 {[%clk 0:00:57.2]} 30. Qe2 {[%clk 0:00:55.5]} 30...
Nxf3+ {[%clk 0:00:45.3]} 31. Rxf3 {[%clk 0:00:55.4]} 31... Nf5 {[%clk
0:00:42.8]} 32. d4 {[%clk 0:00:49.2]} 32... Qxb2 {[%clk 0:00:29.1]} 33. Rd1
{[%clk 0:00:34.6]} 33... a5 {[%clk 0:00:24.5]} 34. Rf2 {[%clk 0:00:32.8]} 34...
cxd4 {[%clk 0:00:20.7]} 35. Nxd4 {[%clk 0:00:32.1]} 35... Qxc3 {[%clk
0:00:20.4]} 36. Qe5+ {[%clk 0:00:32]} 36... Ng7 {[%clk 0:00:18.7]} 37. Rc2
{[%clk 0:00:28.2]} 37... Qh3 {[%clk 0:00:13.1]} 38. Rf1 {[%clk 0:00:11.1]} 38...
Re8 {[%clk 0:00:12.4]} 39. Qf6 {[%clk 0:00:09.4]} 39... Qe3+ {[%clk 0:00:12.1]}
40. Rcf2 {[%clk 0:00:08.7]} 40... Kg8 {[%clk 0:00:10.2]} 41. Qb6 {[%clk
0:00:07.1]} 41... Bc8 {[%clk 0:00:09.1]} 42. Kg2 {[%clk 0:00:04.6]} 42... Nf5
{[%clk 0:00:08.1]} 43. Nxf5 {[%clk 0:00:03.3]} 43... Qxb6 {[%clk 0:00:07.2]} 44.
Nh6+ {[%clk 0:00:02.6]} 44... Kg7 {[%clk 0:00:07.1]} 45. f5 {[%clk 0:00:03.2]}
45... Kxh6 {[%clk 0:00:06.6]} 46. f6 {[%clk 0:00:04.1]} 46... d4 {[%clk
0:00:06.1]} 47. f7 {[%clk 0:00:05]} 47... Bb7+ {[%clk 0:00:06.3]} 48. Kg1 {[%clk
0:00:05.1]} 48... Rf8 {[%clk 0:00:06.3]} 49. Rf4 {[%clk 0:00:05.6]} 49... Qe6
{[%clk 0:00:06.1]} 50. Rh4+ {[%clk 0:00:05.4]} 50... Kg7 {[%clk 0:00:06.4]} 0-1

[Event "*** Titled Tuesday Blitz"]
[Site "Chess.com"]
[Date "2020.12.29"]
[Round "5"]
[White "Ladislav1969"]
[Black "Legendinunknown"]
[Result "1-0"]
[WhiteElo "2408"]
[BlackElo "2549"]
[TimeControl "180+1"]
[EndTime "10:55:18 PST"]
[Termination "Ladislav1969 won by resignation"]

1. e4 {[%clk 0:03:00.9]} 1... c6 {[%clk 0:02:53.7]} 2. d4 {[%clk 0:03:00.8]}
2... d5 {[%clk 0:02:54.6]} 3. e5 {[%clk 0:03:01.5]} 3... Bf5 {[%clk 0:02:52.9]}
4. Nd2 {[%clk 0:03:02.1]} 4... e6 {[%clk 0:02:51.4]} 5. Nb3 {[%clk 0:03:02.1]}
5... Nd7 {[%clk 0:02:49]} 6. Nf3 {[%clk 0:03:02.1]} 6... c5 {[%clk 0:02:48.1]}
7. dxc5 {[%clk 0:03:00.3]} 7... Nxc5 {[%clk 0:02:48.7]} 8. Bb5+ {[%clk
0:02:59.5]} 8... Nd7 {[%clk 0:02:47.6]} 9. Nbd4 {[%clk 0:02:56.4]} 9... Bg6
{[%clk 0:02:46.9]} 10. O-O {[%clk 0:02:46.4]} 10... Ne7 {[%clk 0:02:44.6]} 11.
Bg5 {[%clk 0:02:32.4]} 11... a6 {[%clk 0:02:40.7]} 12. Bd3 {[%clk 0:02:28]}
12... Qb6 {[%clk 0:02:25.4]} 13. Be3 {[%clk 0:02:20.5]} 13... Qc7 {[%clk
0:02:22.7]} 14. Re1 {[%clk 0:02:09.5]} 14... Bxd3 {[%clk 0:02:19.7]} 15. cxd3
{[%clk 0:01:51.6]} 15... Nc6 {[%clk 0:02:08.4]} 16. Rc1 {[%clk 0:01:46.4]} 16...
Bb4 {[%clk 0:02:01.3]} 17. Re2 {[%clk 0:01:44.3]} 17... O-O {[%clk 0:01:57.2]}
18. Rec2 {[%clk 0:01:43.3]} 18... Ndxe5 {[%clk 0:01:51.8]} 19. Nxc6 {[%clk
0:01:02.7]} 19... Nxc6 {[%clk 0:01:33.3]} 20. Nd4 {[%clk 0:01:02.8]} 20... Qd7
{[%clk 0:00:37.2]} 21. Nxc6 {[%clk 0:00:59]} 21... bxc6 {[%clk 0:00:38.1]} 22.
Qg4 {[%clk 0:00:58.5]} 22... Be7 {[%clk 0:00:34.4]} 23. Rxc6 {[%clk 0:00:54.6]}
23... Bf6 {[%clk 0:00:33.1]} 24. Bd4 {[%clk 0:00:50.3]} 24... h5 {[%clk
0:00:30.7]} 25. Qf4 {[%clk 0:00:46.4]} 25... Bxd4 {[%clk 0:00:28.7]} 26. Qxd4
{[%clk 0:00:45.9]} 26... Rfc8 {[%clk 0:00:28.9]} 27. Qb6 {[%clk 0:00:35.5]}
27... Rab8 {[%clk 0:00:22.3]} 28. Rxc8+ {[%clk 0:00:27.8]} 28... Rxc8 {[%clk
0:00:23.2]} 29. Rc5 {[%clk 0:00:16.2]} 29... Rxc5 {[%clk 0:00:21.5]} 30. Qxc5
{[%clk 0:00:16.4]} 30... Qa4 {[%clk 0:00:22]} 31. h4 {[%clk 0:00:14.1]} 31...
Qxh4 {[%clk 0:00:21.1]} 32. Qc8+ {[%clk 0:00:11.8]} 32... Kh7 {[%clk 0:00:20.6]}
33. Qxa6 {[%clk 0:00:12.7]} 33... Qd4 {[%clk 0:00:20.6]} 34. a4 {[%clk
0:00:10.8]} 34... Qxb2 {[%clk 0:00:20.5]} 35. a5 {[%clk 0:00:11]} 35... Qc1+
{[%clk 0:00:20.5]} 36. Kh2 {[%clk 0:00:10.6]} 36... Qb2 {[%clk 0:00:20.5]} 37.
Qb6 {[%clk 0:00:09.4]} 37... Qe5+ {[%clk 0:00:21]} 38. Kg1 {[%clk 0:00:08]}
38... d4 {[%clk 0:00:21.3]} 39. a6 {[%clk 0:00:07.7]} 39... Qe1+ {[%clk
0:00:21.3]} 40. Kh2 {[%clk 0:00:07.1]} 40... Qxf2 {[%clk 0:00:21.9]} 41. a7
{[%clk 0:00:06.3]} 41... Qh4+ {[%clk 0:00:21.9]} 42. Kg1 {[%clk 0:00:05.8]}
42... Qe1+ {[%clk 0:00:22.8]} 43. Kh2 {[%clk 0:00:06.2]} 43... Qe5+ {[%clk
0:00:23.4]} 44. Kg1 {[%clk 0:00:06.1]} 44... Qd5 {[%clk 0:00:23.5]} 45. Qb8
{[%clk 0:00:05.5]} 45... Qf5 {[%clk 0:00:22]} 46. a8=Q {[%clk 0:00:05.5]} 46...
Qxd3 {[%clk 0:00:22.6]} 47. Qh8+ {[%clk 0:00:04]} 47... Kg6 {[%clk 0:00:22.3]}
48. Qf3 {[%clk 0:00:04.9]} 48... Qc2 {[%clk 0:00:21.1]} 49. Kh2 {[%clk
0:00:04.9]} 49... Qc7+ {[%clk 0:00:20.4]} 50. Kg1 {[%clk 0:00:04.1]} 50... Qg3
{[%clk 0:00:21.3]} 51. Qxg3+ {[%clk 0:00:03.8]} 1-0

[Event "*** Titled Tuesday Blitz"]
[Site "Chess.com"]
[Date "2020.12.29"]
[Round "5"]
[White "Angel_Hranitel_37"]
[Black "Andrakhanova"]
[Result "0-1"]
[WhiteElo "2391"]
[BlackElo "2253"]
[TimeControl "180+1"]
[EndTime "10:55:18 PST"]
[Termination "Andrakhanova won by resignation"]

1. d4 {[%clk 0:03:00.9]} 1... d5 {[%clk 0:02:59.6]} 2. c4 {[%clk 0:02:58.6]}
2... e6 {[%clk 0:02:59.3]} 3. Nf3 {[%clk 0:02:58.4]} 3... c6 {[%clk 0:02:59.3]}
4. g3 {[%clk 0:02:59.3]} 4... dxc4 {[%clk 0:02:57.5]} 5. Bg2 {[%clk 0:03:00.2]}
5... Nf6 {[%clk 0:02:57.8]} 6. O-O {[%clk 0:02:57.1]} 6... b5 {[%clk 0:02:56.6]}
7. a4 {[%clk 0:02:55]} 7... Bb7 {[%clk 0:02:56.6]} 8. Ne5 {[%clk 0:02:53.9]}
8... Nd5 {[%clk 0:02:53.6]} 9. e4 {[%clk 0:02:35.3]} 9... Nf6 {[%clk 0:02:52]}
10. Nc3 {[%clk 0:02:35.2]} 10... a6 {[%clk 0:02:49.7]} 11. axb5 {[%clk
0:02:01.4]} 11... cxb5 {[%clk 0:02:50.6]} 12. d5 {[%clk 0:02:01.5]} 12... exd5
{[%clk 0:02:47.6]} 13. exd5 {[%clk 0:02:02.4]} 13... Bd6 {[%clk 0:02:46.7]} 14.
Nc6 {[%clk 0:02:02.4]} 14... Qc7 {[%clk 0:02:27.8]} 15. Re1+ {[%clk 0:01:56.2]}
15... Kf8 {[%clk 0:02:27.7]} 16. Bg5 {[%clk 0:01:39.9]} 16... Nbd7 {[%clk
0:02:16.7]} 17. Qd4 {[%clk 0:01:05.3]} 17... h6 {[%clk 0:02:11.5]} 18. Bf4
{[%clk 0:00:58.8]} 18... Bxf4 {[%clk 0:02:06.2]} 19. gxf4 {[%clk 0:00:59.7]}
19... Re8 {[%clk 0:01:52.2]} 20. d6 {[%clk 0:00:47.5]} 20... Qb6 {[%clk
0:01:38.2]} 21. Qxb6 {[%clk 0:00:44.1]} 21... Nxb6 {[%clk 0:01:39.1]} 22. Ne5
{[%clk 0:00:44.3]} 22... Bxg2 {[%clk 0:01:32.7]} 23. Rxa6 {[%clk 0:00:43.4]}
23... Nbd5 {[%clk 0:01:06]} 24. Kxg2 {[%clk 0:00:35.4]} 24... Nxf4+ {[%clk
0:01:03.9]} 25. Kf3 {[%clk 0:00:35.3]} 25... g5 {[%clk 0:01:00]} 26. d7 {[%clk
0:00:26.7]} 26... Nxd7 {[%clk 0:00:58]} 27. Nxd7+ {[%clk 0:00:27.6]} 27... Kg7
{[%clk 0:00:58]} 28. Rxe8 {[%clk 0:00:17.5]} 28... Rxe8 {[%clk 0:00:58.9]} 29.
Nxb5 {[%clk 0:00:18.2]} 29... Nd3 {[%clk 0:00:51.1]} 30. Ra7 {[%clk 0:00:16.3]}
30... Nxb2 {[%clk 0:00:48.8]} 31. Nb6 {[%clk 0:00:14.5]} 31... Rb8 {[%clk
0:00:38.1]} 32. Ra6 {[%clk 0:00:14.7]} 32... Nd1 {[%clk 0:00:31.8]} 33. Ke2
{[%clk 0:00:08]} 33... Nb2 {[%clk 0:00:31.8]} 34. Nc3 {[%clk 0:00:08.4]} 34...
Nd3 {[%clk 0:00:29.4]} 35. Nxc4 {[%clk 0:00:08.5]} 35... Nf4+ {[%clk 0:00:29.6]}
36. Kf3 {[%clk 0:00:07.3]} 36... Rb3 {[%clk 0:00:29.6]} 37. Ra3 {[%clk
0:00:07.8]} 37... Rb4 {[%clk 0:00:27.4]} 38. Ne3 {[%clk 0:00:07.9]} 38... h5
{[%clk 0:00:20.6]} 39. Ncd5 {[%clk 0:00:08.2]} 39... g4+ {[%clk 0:00:19.3]} 40.
Kg3 {[%clk 0:00:07.2]} 40... Nxd5 {[%clk 0:00:14.6]} 41. Nxd5 {[%clk 0:00:08.1]}
41... Rd4 {[%clk 0:00:11.8]} 42. Ne3 {[%clk 0:00:08.5]} 42... Kg6 {[%clk
0:00:10.5]} 43. Ng2 {[%clk 0:00:08.5]} 43... f5 {[%clk 0:00:09.8]} 44. Ra6+
{[%clk 0:00:08]} 44... Kg5 {[%clk 0:00:09.6]} 45. Nh4 {[%clk 0:00:03.8]} 45...
f4+ {[%clk 0:00:09.4]} 46. Kg2 {[%clk 0:00:04]} 46... Kxh4 {[%clk 0:00:10.3]}
47. Ra5 {[%clk 0:00:04.7]} 47... f3+ {[%clk 0:00:10.6]} 0-1

[Event "*** Titled Tuesday Blitz"]
[Site "Chess.com"]
[Date "2020.12.29"]
[Round "5"]
[White "AlexeiShirov"]
[Black "albi1999"]
[Result "1-0"]
[WhiteElo "2834"]
[BlackElo "2539"]
[TimeControl "180+1"]
[EndTime "10:55:22 PST"]
[Termination "AlexeiShirov won by resignation"]

1. e4 {[%clk 0:03:00.9]} 1... e5 {[%clk 0:02:58.3]} 2. Nf3 {[%clk 0:03:00.2]}
2... Nc6 {[%clk 0:02:58]} 3. Bb5 {[%clk 0:02:59.7]} 3... a6 {[%clk 0:02:58.5]}
4. Ba4 {[%clk 0:02:59.5]} 4... Nf6 {[%clk 0:02:56.5]} 5. O-O {[%clk 0:02:59]}
5... Be7 {[%clk 0:02:56.2]} 6. Re1 {[%clk 0:02:55.6]} 6... b5 {[%clk 0:02:55.5]}
7. Bb3 {[%clk 0:02:55.3]} 7... O-O {[%clk 0:02:56.4]} 8. d4 {[%clk 0:02:52.1]}
8... d6 {[%clk 0:02:56]} 9. c3 {[%clk 0:02:51.6]} 9... Bg4 {[%clk 0:02:55.2]}
10. Be3 {[%clk 0:02:51.4]} 10... Bh5 {[%clk 0:02:53.2]} 11. Nbd2 {[%clk
0:02:48.3]} 11... Ng4 {[%clk 0:02:51.4]} 12. Bd5 {[%clk 0:02:46.7]} 12... Qd7
{[%clk 0:02:41.2]} 13. dxe5 {[%clk 0:02:45.7]} 13... dxe5 {[%clk 0:02:26.6]} 14.
Bxc6 {[%clk 0:02:29.8]} 14... Qxc6 {[%clk 0:02:18.9]} 15. Nxe5 {[%clk
0:02:29.3]} 15... Nxe5 {[%clk 0:02:15.3]} 16. Qxh5 {[%clk 0:02:28.1]} 16... Nd3
{[%clk 0:02:15.3]} 17. Re2 {[%clk 0:02:18.8]} 17... Nxb2 {[%clk 0:02:07.9]} 18.
Bd4 {[%clk 0:02:11.8]} 18... Qg6 {[%clk 0:01:49.8]} 19. Qd5 {[%clk 0:01:56.5]}
19... c5 {[%clk 0:01:38.3]} 20. Bxc5 {[%clk 0:01:53.4]} 20... Rfd8 {[%clk
0:01:31.1]} 21. Qb3 {[%clk 0:01:41.3]} 21... Bxc5 {[%clk 0:01:23.1]} 22. Qxb2
{[%clk 0:01:41.2]} 22... Rd3 {[%clk 0:01:14]} 23. a4 {[%clk 0:01:27.7]} 23... b4
{[%clk 0:00:39.4]} 24. cxb4 {[%clk 0:01:26.9]} 24... Bd4 {[%clk 0:00:38.2]} 25.
Qb1 {[%clk 0:01:21.2]} 25... Rxd2 {[%clk 0:00:32.1]} 26. Rxd2 {[%clk 0:01:20]}
26... Bxa1 {[%clk 0:00:32.2]} 27. Qxa1 {[%clk 0:01:18.8]} 27... Qxe4 {[%clk
0:00:32.4]} 28. Rd4 {[%clk 0:01:16.4]} 28... Qc2 {[%clk 0:00:30.1]} 29. Qd1
{[%clk 0:01:13.8]} 29... Qxd1+ {[%clk 0:00:27.1]} 30. Rxd1 {[%clk 0:01:13]}
30... g6 {[%clk 0:00:22]} 31. g3 {[%clk 0:01:08.2]} 31... Rb8 {[%clk 0:00:22.3]}
32. Rd4 {[%clk 0:01:07.7]} 32... Kf8 {[%clk 0:00:21.6]} 33. Kf1 {[%clk 0:01:07]}
33... Ke7 {[%clk 0:00:22.1]} 34. Ke2 {[%clk 0:01:06.6]} 34... Ke6 {[%clk
0:00:22.5]} 35. Kd3 {[%clk 0:01:06.3]} 35... Rc8 {[%clk 0:00:23.2]} 36. Rc4
{[%clk 0:01:04.1]} 36... Rd8+ {[%clk 0:00:23.6]} 37. Ke3 {[%clk 0:01:02.2]}
37... Ke5 {[%clk 0:00:20.4]} 38. Re4+ {[%clk 0:00:53.7]} 38... Kf5 {[%clk
0:00:20.1]} 39. Rd4 {[%clk 0:00:52.6]} 39... Re8+ {[%clk 0:00:20]} 40. Kd2
{[%clk 0:00:49.1]} 40... Re6 {[%clk 0:00:19.3]} 41. f3 {[%clk 0:00:44.3]} 41...
h5 {[%clk 0:00:19.2]} 42. Rf4+ {[%clk 0:00:43.1]} 42... Kg5 {[%clk 0:00:17.9]}
43. Rxf7 {[%clk 0:00:42.3]} 43... Rb6 {[%clk 0:00:15.8]} 44. Kc3 {[%clk
0:00:41.5]} 44... Rc6+ {[%clk 0:00:16.3]} 45. Kb2 {[%clk 0:00:40.1]} 45... Rb6
{[%clk 0:00:15.3]} 46. h4+ {[%clk 0:00:38.6]} 46... Kh6 {[%clk 0:00:14.5]} 47.
Rf4 {[%clk 0:00:38.5]} 47... g5 {[%clk 0:00:13.6]} 48. hxg5+ {[%clk 0:00:37.3]}
48... Kxg5 {[%clk 0:00:14.5]} 49. Kb3 {[%clk 0:00:37.2]} 49... Re6 {[%clk
0:00:14.6]} 50. Re4 {[%clk 0:00:36.4]} 50... Rf6 {[%clk 0:00:14.6]} 51. Re3
{[%clk 0:00:36.1]} 51... Kf5 {[%clk 0:00:12.1]} 52. b5 {[%clk 0:00:35.2]} 52...
axb5 {[%clk 0:00:13]} 53. axb5 {[%clk 0:00:34.4]} 53... Rg6 {[%clk 0:00:13.6]}
54. f4 {[%clk 0:00:34.2]} 54... h4 {[%clk 0:00:10.5]} 55. gxh4 {[%clk
0:00:33.7]} 55... Kxf4 {[%clk 0:00:10.7]} 56. Rc3 {[%clk 0:00:33.8]} 56... Rb6
{[%clk 0:00:09.9]} 57. Kb4 {[%clk 0:00:33.4]} 57... Kg4 {[%clk 0:00:10.5]} 58.
Rc4+ {[%clk 0:00:33.5]} 58... Kh5 {[%clk 0:00:10.5]} 59. Ka5 {[%clk 0:00:33.5]}
1-0

[Event "*** Titled Tuesday Blitz"]
[Site "Chess.com"]
[Date "2020.12.29"]
[Round "5"]
[White "Mikasinski"]
[Black "EugeneRougon"]
[Result "0-1"]
[WhiteElo "2519"]
[BlackElo "2761"]
[TimeControl "180+1"]
[EndTime "10:55:22 PST"]
[Termination "EugeneRougon won on time"]

1. e4 {[%clk 0:03:00.9]} 1... e6 {[%clk 0:02:58.3]} 2. d4 {[%clk 0:03:00.9]}
2... d5 {[%clk 0:02:58.5]} 3. Nc3 {[%clk 0:03:01.6]} 3... Bb4 {[%clk 0:02:58.3]}
4. e5 {[%clk 0:03:01.7]} 4... c5 {[%clk 0:02:58.7]} 5. a3 {[%clk 0:03:01.9]}
5... Bxc3+ {[%clk 0:02:59.4]} 6. bxc3 {[%clk 0:03:02.8]} 6... Ne7 {[%clk
0:03:00]} 7. h4 {[%clk 0:03:02.9]} 7... Qc7 {[%clk 0:02:59.7]} 8. h5 {[%clk
0:03:02.1]} 8... h6 {[%clk 0:02:59.7]} 9. Nf3 {[%clk 0:03:02.5]} 9... b6 {[%clk
0:02:55.5]} 10. a4 {[%clk 0:03:02.4]} 10... Ba6 {[%clk 0:02:53.3]} 11. Bb5+
{[%clk 0:03:03]} 11... Bxb5 {[%clk 0:02:52.1]} 12. axb5 {[%clk 0:03:03.7]} 12...
a5 {[%clk 0:02:48]} 13. Ra3 {[%clk 0:03:00.4]} 13... Nd7 {[%clk 0:02:29.8]} 14.
Nh4 {[%clk 0:02:59.8]} 14... Rc8 {[%clk 0:02:19.9]} 15. Qg4 {[%clk 0:02:58.5]}
15... Rg8 {[%clk 0:02:15.4]} 16. O-O {[%clk 0:02:46.4]} 16... cxd4 {[%clk
0:02:12]} 17. cxd4 {[%clk 0:02:44.3]} 17... Qxc2 {[%clk 0:02:12]} 18. Rf3 {[%clk
0:02:19]} 18... Rc4 {[%clk 0:01:55.7]} 19. Qf4 {[%clk 0:01:48.8]} 19... Rf8
{[%clk 0:01:55.3]} 20. Ba3 {[%clk 0:01:40.5]} 20... Qe4 {[%clk 0:01:36.6]} 21.
Bxe7 {[%clk 0:00:19]} 21... Kxe7 {[%clk 0:01:27.8]} 22. Qh2 {[%clk 0:00:04.6]}
22... Rxd4 {[%clk 0:01:24.3]} 23. g3 {[%clk 0:00:03.3]} 23... Nxe5 {[%clk
0:01:16.3]} 24. Re3 {[%clk 0:00:03.6]} 24... Ng4 {[%clk 0:00:41.3]} 25. Rxe4
{[%clk 0:00:03.4]} 25... Nxh2 {[%clk 0:00:42.2]} 26. Rxd4 {[%clk 0:00:03.8]}
26... Nxf1 {[%clk 0:00:43.1]} 27. Kxf1 {[%clk 0:00:04]} 27... Rc8 {[%clk
0:00:43.8]} 28. Ke2 {[%clk 0:00:03.1]} 28... Rc5 {[%clk 0:00:43.4]} 29. Nf3
{[%clk 0:00:01.8]} 29... f6 {[%clk 0:00:41.3]} 30. Nd2 {[%clk 0:00:01.6]} 30...
Rxb5 {[%clk 0:00:39.4]} 31. Rd3 {[%clk 0:00:02.3]} 31... Rc5 {[%clk 0:00:33.1]}
32. Nb3 {[%clk 0:00:01.9]} 32... Rc2+ {[%clk 0:00:32.1]} 33. Rd2 {[%clk
0:00:02.5]} 33... Rxd2+ {[%clk 0:00:20.9]} 34. Kxd2 {[%clk 0:00:03.4]} 34... e5
{[%clk 0:00:20.3]} 35. Kd3 {[%clk 0:00:03.3]} 35... Kd6 {[%clk 0:00:20.5]} 36.
f3 {[%clk 0:00:02.7]} 36... Kc6 {[%clk 0:00:20.5]} 37. g4 {[%clk 0:00:03.1]}
37... Kb5 {[%clk 0:00:20.3]} 38. Kc3 {[%clk 0:00:03.2]} 38... Ka4 {[%clk
0:00:19.3]} 39. Nc1 {[%clk 0:00:01.9]} 39... b5 {[%clk 0:00:18.8]} 40. Nd3
{[%clk 0:00:02.5]} 40... b4+ {[%clk 0:00:18.8]} 41. Kb2 {[%clk 0:00:03]} 41...
Kb5 {[%clk 0:00:18.6]} 42. Ne1 {[%clk 0:00:02]} 42... a4 {[%clk 0:00:18.4]} 43.
Nc2 {[%clk 0:00:02.5]} 43... d4 {[%clk 0:00:17.9]} 44. Ne1 {[%clk 0:00:01.9]}
44... Kc4 {[%clk 0:00:18.3]} 45. Ng2 {[%clk 0:00:01.9]} 45... a3+ {[%clk
0:00:17.5]} 46. Ka2 {[%clk 0:00:02]} 46... Kc3 {[%clk 0:00:17.6]} 47. Nh4 {[%clk
0:00:01.3]} 47... b3+ {[%clk 0:00:16.9]} 48. Kb1 {[%clk 0:00:01.1]} 48... a2+
{[%clk 0:00:16.7]} 49. Ka1 {[%clk 0:00:01.6]} 49... Kc2 {[%clk 0:00:16.3]} 0-1

[Event "*** Titled Tuesday Blitz"]
[Site "Chess.com"]
[Date "2020.12.29"]
[Round "5"]
[White "BogdanDeac"]
[Black "rpragchess"]
[Result "1-0"]
[WhiteElo "3017"]
[BlackElo "2844"]
[TimeControl "180+1"]
[EndTime "10:55:23 PST"]
[Termination "BogdanDeac won on time"]

1. Nf3 {[%clk 0:03:00.9]} 1... Nf6 {[%clk 0:02:59.4]} 2. c4 {[%clk 0:02:59.8]}
2... b6 {[%clk 0:02:52.7]} 3. d4 {[%clk 0:02:58]} 3... Bb7 {[%clk 0:02:50.2]} 4.
g3 {[%clk 0:02:57.9]} 4... g6 {[%clk 0:02:45.5]} 5. Bg2 {[%clk 0:02:57]} 5...
Bg7 {[%clk 0:02:44.8]} 6. O-O {[%clk 0:02:57.2]} 6... e6 {[%clk 0:02:45]} 7. Bf4
{[%clk 0:02:18.9]} 7... O-O {[%clk 0:02:37]} 8. Qc2 {[%clk 0:02:18.4]} 8... d6
{[%clk 0:01:56.1]} 9. Nc3 {[%clk 0:02:15.7]} 9... Nc6 {[%clk 0:01:54.8]} 10.
Rfd1 {[%clk 0:02:03.1]} 10... Nd7 {[%clk 0:01:43.9]} 11. d5 {[%clk 0:01:48.5]}
11... Nb4 {[%clk 0:01:32.8]} 12. Qd2 {[%clk 0:01:35.6]} 12... e5 {[%clk
0:01:27.3]} 13. Bh6 {[%clk 0:01:33.8]} 13... a5 {[%clk 0:01:23.9]} 14. a3 {[%clk
0:01:07.9]} 14... Na6 {[%clk 0:01:23.8]} 15. Rab1 {[%clk 0:01:06.1]} 15... Nac5
{[%clk 0:00:49.6]} 16. b4 {[%clk 0:00:52.1]} 16... axb4 {[%clk 0:00:49.6]} 17.
axb4 {[%clk 0:00:51.3]} 17... Na4 {[%clk 0:00:50.2]} 18. Nb5 {[%clk 0:00:50.6]}
18... Ba6 {[%clk 0:00:35]} 19. Bxg7 {[%clk 0:00:38.3]} 19... Kxg7 {[%clk
0:00:34.6]} 20. Qc2 {[%clk 0:00:38.4]} 20... Bxb5 {[%clk 0:00:28.7]} 21. cxb5
{[%clk 0:00:38.4]} 21... Qf6 {[%clk 0:00:07.3]} 22. e4 {[%clk 0:00:29.7]} 22...
Ra7 {[%clk 0:00:06.4]} 23. Ra1 {[%clk 0:00:19.7]} 23... Rfa8 {[%clk 0:00:06.5]}
24. Ra3 {[%clk 0:00:19.7]} 24... Nac5 {[%clk 0:00:03.4]} 25. Rxa7 {[%clk
0:00:19]} 25... Rxa7 {[%clk 0:00:03.7]} 26. bxc5 {[%clk 0:00:19.6]} 26... bxc5
{[%clk 0:00:04.6]} 27. h4 {[%clk 0:00:09]} 27... Qd8 {[%clk 0:00:03.6]} 28. h5
{[%clk 0:00:08.8]} 28... Qa8 {[%clk 0:00:03.5]} 29. Qd2 {[%clk 0:00:08.8]} 29...
Ra2 {[%clk 0:00:02.9]} 30. h6+ {[%clk 0:00:07.3]} 30... Kf8 {[%clk 0:00:02.4]}
31. Qg5 {[%clk 0:00:07.5]} 31... f6 {[%clk 0:00:02.8]} 32. Qg4 {[%clk
0:00:07.7]} 32... Qe8 {[%clk 0:00:03.5]} 33. Nd2 {[%clk 0:00:05.2]} 33... Nb6
{[%clk 0:00:03.7]} 34. Bf1 {[%clk 0:00:05.5]} 34... Ra3 {[%clk 0:00:04.1]} 35.
Nc4 {[%clk 0:00:05.6]} 35... Ra4 {[%clk 0:00:04.3]} 36. Ne3 {[%clk 0:00:04]}
36... Qd7 {[%clk 0:00:03.6]} 37. Qf3 {[%clk 0:00:04.3]} 37... Qe7 {[%clk
0:00:02.8]} 38. Ng4 {[%clk 0:00:04.1]} 38... Nd7 {[%clk 0:00:03.2]} 39. Rb1
{[%clk 0:00:04]} 39... Rb4 {[%clk 0:00:02.8]} 40. Rxb4 {[%clk 0:00:03.4]} 40...
cxb4 {[%clk 0:00:03.7]} 41. Qb3 {[%clk 0:00:03.9]} 41... f5 {[%clk 0:00:04.2]}
42. exf5 {[%clk 0:00:03.8]} 42... gxf5 {[%clk 0:00:05.1]} 43. Nh2 {[%clk
0:00:04.5]} 43... f4 {[%clk 0:00:04.8]} 44. Qxb4 {[%clk 0:00:04.8]} 44... Qg5
{[%clk 0:00:03.6]} 45. Qc3 {[%clk 0:00:04.4]} 1-0